fUSD/lending_fUSD_20250108
["ID","MTS","AMOUNT","RATE_DAILY","PERIOD"]
[348145449,1736353843143,-1935.73,0.0001082,2]
[348145450,1736353843158,-658.07,0.0001082,2]
[348145451,1736353843168,-500.0,0.0001082,2]
[348145452,1736353843178,-579.45,0.0001082,2]
[348145453,1736353843187,-563.92,0.0001082,2]
[348145454,1736353843196,-974.8,0.0001082,2]
[348145455,1736353843206,-566.81,0.0001082,2]
[348145456,1736353843215,-1256.35,0.0001082,2]
[348145457,1736353843225,-723.11,0.0001082,2]
[348145458,1736353843236,-960.32,0.00010821,2]
[348145459,1736353843245,-970.25,0.00010821,2]
[348145460,1736353843253,-843.01,0.00010821,2]
[348145461,1736353843263,-500.0,0.00010821,2]
[348145462,1736353843273,-1584.65,0.00010821,2]
[348145463,1736353843283,-500.0,0.00010821,2]
[348145464,1736353843293,-1110.46,0.00010821,2]
[348145465,1736353843303,-500.0,0.00010821,2]
[348145466,1736353843314,-861.16,0.00010821,2]
[348145467,1736353843323,-150.0,0.00010829,2]
[348145468,1736353843332,-313.41571492,0.00010831,2]
[348145469,1736353843342,-500.0,0.0001086,2]
[348145470,1736353843351,-150.0,0.00010863,2]
[348145471,1736353843360,-358.49483397,0.00010878,2]
[348145472,1736353843369,-313.41571492,0.00010934,2]
[348145473,1736353843380,-150.0,0.00010959,2]
[348145474,1736353843389,-150.0,0.00010972,2]
[348145475,1736353843400,-500.0,0.00010975,2]
[348145476,1736353843410,-500.0,0.00010975,2]
[348145477,1736353843419,-641.84,0.00010975,2]
[348145478,1736353843428,-500.0,0.00010975,2]
[348145479,1736353843438,-500.0,0.00010975,2]
[348145480,1736353843447,-500.0,0.00010975,2]
[348145481,1736353843455,-404.98531961,0.00010975,2]
[348145482,1736353843464,-500.0,0.00010975,2]
[348145483,1736353843473,-500.0,0.00010975,2]
[348145484,1736353843482,-500.0,0.00010975,2]
[348145485,1736353843491,-539.21,0.00010975,2]
[348145486,1736353843500,-500.0,0.00010975,2]
[348145487,1736353843509,-500.0,0.00010975,2]
[348145488,1736353843518,-500.0,0.00010975,2]
[348145489,1736353843527,-500.0,0.00010975,2]
[348145490,1736353843536,-500.0,0.00010975,2]
[348145491,1736353843545,-500.0,0.00010975,2]
[348145492,1736353843555,-500.0,0.00010975,2]
[348145494,1736353843568,-500.0,0.00010975,2]
[348145496,1736353843577,-500.0,0.00010975,2]
[348145498,1736353843587,-500.0,0.00010975,2]
[348145500,1736353843597,-500.0,0.00010975,2]
[348145502,1736353843606,-500.0,0.00010975,2]
[348145504,1736353843615,-500.0,0.00010975,2]
[348145506,1736353843624,-500.0,0.00010975,2]
[348145508,1736353843634,-1629.65,0.00010975,2]
[348145510,1736353843644,-500.0,0.00010975,2]
[348145512,1736353843653,-500.0,0.00010975,2]
[348145514,1736353843663,-500.0,0.00010975,2]
[348145516,1736353843672,-500.0,0.00010975,2]
[348145518,1736353843681,-1874.02,0.00010975,2]
[348145520,1736353843690,-500.0,0.00010975,2]
[348145522,1736353843700,-500.0,0.00010975,2]
[348145524,1736353843709,-500.0,0.00010975,2]
[348145526,1736353843719,-500.0,0.00010975,2]
[348145528,1736353843729,-500.0,0.00010975,2]
[348145530,1736353843738,-320.25,0.00010975,2]
[348145532,1736353843747,-500.0,0.00010975,2]
[348145534,1736353843756,-500.0,0.00010975,2]
[348145536,1736353843766,-500.0,0.00010975,2]
[348145538,1736353843775,-500.0,0.00010975,2]
[348145540,1736353843784,-500.0,0.00010975,2]
[348145542,1736353843794,-500.0,0.00010975,2]
[348145544,1736353843803,-500.0,0.00010975,2]
[348145546,1736353843812,-551.41,0.00010975,2]
[348145548,1736353843821,-502.10475351,0.00010975,2]
[348145550,1736353843831,-500.0,0.00010975,2]
[348145552,1736353843840,-606.75,0.00010975,2]
[348145554,1736353843849,-500.0,0.00010975,2]
[348145556,1736353843858,-500.0,0.00010975,2]
[348145558,1736353843868,-500.0,0.00010975,2]
[348145560,1736353843877,-500.0,0.00010975,2]
[348145562,1736353843887,-322.54,0.00010975,2]
[348145564,1736353843898,-527.21,0.00010975,2]
[348145566,1736353843908,-500.0,0.00010975,2]
[348145568,1736353843917,-520.45,0.00010975,2]
[348145570,1736353843926,-528.55,0.00010975,2]
[348145572,1736353843935,-500.0,0.00010975,2]
[348145574,1736353843944,-500.0,0.00010975,2]
[348145576,1736353843954,-500.0,0.00010976,2]
[348145578,1736353843963,-500.0,0.00010976,2]
[348145581,1736353843972,-500.0,0.00010976,2]
[348145583,1736353843982,-569.09,0.00010976,2]
[348145584,1736353843991,-500.0,0.00010976,2]
[348145586,1736353844000,-443.0016198,0.00010976,2]
[348145588,1736353844009,-735.36,0.00010976,2]
[348145591,1736353844019,-500.0,0.00010976,2]
[348145592,1736353844028,-969.62,0.00010976,2]
[348145594,1736353844037,-617.3,0.00010976,2]
[348145597,1736353844048,-500.0,0.00010976,2]
[348145599,1736353844058,-500.0,0.00010976,2]
[348145601,1736353844067,-590.886398,0.00010976,2]
[348145603,1736353844076,-551.713287,0.00010976,2]
[348145605,1736353844086,-2413.33,0.00010976,2]
[348145607,1736353844095,-500.0,0.00010976,2]
[348145609,1736353844105,-500.0,0.00010976,2]
[348145611,1736353844114,-500.0,0.00010976,2]
[348145613,1736353844124,-500.0,0.00010976,2]
[348145615,1736353844134,-500.0,0.00010976,2]
[348145617,1736353844144,-500.0,0.00010976,2]
[348145619,1736353844156,-1542.67,0.00010976,2]
[348145621,1736353844165,-785.81,0.00010976,2]
[348145623,1736353844174,-500.0,0.00010976,2]
[348145625,1736353844184,-500.0,0.00010976,2]
[348145627,1736353844193,-816.79,0.00010976,2]
[348145629,1736353844203,-500.0,0.00010976,2]
[348145631,1736353844213,-500.0,0.00010976,2]
[348145633,1736353844222,-871.06,0.00010976,2]
[348145635,1736353844232,-1461.78,0.00010976,2]
[348145637,1736353844241,-1195.87,0.00010976,2]
[348145639,1736353844251,-595.94,0.00010976,2]
[348145641,1736353844260,-1117.72,0.00010976,2]
[348145643,1736353844269,-2411.13,0.00010976,2]
[348145645,1736353844278,-2436.28,0.00010976,2]
[348145647,1736353844287,-195.13945326,0.00010977,2]
[348145649,1736353844296,-502.99186117,0.00010977,2]
[348145651,1736353844305,-500.0,0.00010977,2]
[348145653,1736353844315,-500.62021904,0.00010977,2]
[348145655,1736353844324,-502.12075007,0.00010977,2]
[348145657,1736353844334,-500.96804778,0.00010977,2]
[348145659,1736353844343,-503.13166563,0.00010977,2]
[348145661,1736353844352,-501.99067918,0.00010977,2]
[348145663,1736353844361,-500.69368204,0.00010977,2]
[348145665,1736353844371,-502.85718823,0.00010977,2]
[348145667,1736353844381,-501.66983493,0.00010977,2]
[348145669,1736353844390,-501.1098614,0.00010977,2]
[348145671,1736353844400,-397.99543455,0.00010977,2]
[348145673,1736353844410,-502.51876585,0.00010977,2]
[348145675,1736353844419,-501.97774188,0.00010977,2]
[348145677,1736353844429,-503.37953518,0.00010977,2]
[348145679,1736353844438,-502.2692072,0.00010977,2]
[348145681,1736353844448,-502.4382404,0.00010977,2]
[348145683,1736353844457,-500.0,0.00010978,2]
[348145685,1736353844466,-2104.65,0.00010978,2]
[348145686,1736353844475,-500.0,0.00010978,2]
[348145689,1736353844485,-711.23,0.00010978,2]
[348145690,1736353844494,-503.04,0.00010978,2]
[348145692,1736353844504,-500.0,0.00010978,2]
[348145695,1736353844513,-537.09,0.00010978,2]
[348145696,1736353844522,-500.0,0.00010978,2]
[348145699,1736353844532,-500.0,0.00010986,2]
[348145700,1736353844541,-150.0,0.00010989,2]
[348145703,1736353844551,-255.0,0.00010998,2]
[348145705,1736353844560,-150.0,0.00010999,2]
[348145707,1736353844569,-550.0,0.00011,2]
[348145709,1736353844579,-1299.87485979,0.00011,2]
[348145710,1736353844588,-6108.6162559,0.00011,2]
[348145713,1736353844598,-313.41571492,0.00011038,2]
[348145714,1736353844607,-500.0,0.00011087,2]
[348145717,1736353844616,-1035.24,0.00011087,2]
[348145719,1736353844626,-2321.84,0.00011087,2]
[348145721,1736353844635,-500.0,0.00011087,2]
[348145723,1736353844644,-520.75,0.00011087,2]
[348145725,1736353844653,-1242.59,0.00011087,2]
[348145727,1736353844663,-2241.97,0.00011087,2]
[348145729,1736353844673,-500.0,0.00011087,2]
[348145730,1736353844682,-500.0,0.00011087,2]
[348145731,1736353844691,-1097.9,0.00011087,2]
[348145732,1736353844700,-744.77,0.00011087,2]
[348145733,1736353844709,-752.59,0.00011087,2]
[348145734,1736353844718,-2200.25,0.00011087,2]
[348145735,1736353844727,-500.0,0.00011088,2]
[348145736,1736353844736,-500.0,0.00011088,2]
[348145737,1736353844745,-500.0,0.00011088,2]
[348145738,1736353844754,-500.0,0.00011088,2]
[348145740,1736353844763,-500.0,0.00011088,2]
[348145742,1736353844773,-533.15,0.00011088,2]
[348145744,1736353844782,-500.0,0.00011088,2]
[348145746,1736353844792,-500.0,0.00011088,2]
[348145748,1736353844801,-769.16,0.00011089,2]
[348145750,1736353844810,-1010.14,0.00011089,2]
[348145752,1736353844819,-150.0,0.00011092,2]
[348145754,1736353844829,-775.34,0.00011094,2]
[348145756,1736353844839,-642.26,0.00011094,2]
[348145758,1736353844848,-500.0,0.00011094,2]
[348145760,1736353844857,-556.97,0.00011094,2]
[348145762,1736353844868,-500.0,0.00011094,2]
[348145764,1736353844879,-988.69,0.00011094,2]
[348145766,1736353844888,-534.79,0.00011094,2]
[348145768,1736353844898,-1263.99,0.00011094,2]
[348145770,1736353844907,-1935.73,0.00011094,2]
[348145772,1736353844916,-577.75,0.00011094,2]
[348145774,1736353844925,-500.0,0.00011094,2]
[348145776,1736353844935,-500.0,0.00011094,2]
[348145778,1736353844944,-658.07,0.00011094,2]
[348145780,1736353844954,-500.0,0.00011094,2]
[348145782,1736353844963,-500.0,0.00011094,2]
[348145784,1736353844972,-500.0,0.00011094,2]
[348145786,1736353844982,-579.45,0.00011094,2]
[348145788,1736353844992,-500.0,0.00011094,2]
[348145790,1736353845002,-563.92,0.00011094,2]
[348145792,1736353845011,-500.0,0.00011094,2]
[348145814,1736353845206,-500.0,0.00011094,2]
[348145816,1736353845216,-974.8,0.00011094,2]
[348145818,1736353845226,-785.62,0.00011094,2]
[348145820,1736353845237,-901.4,0.00011094,2]
[348145822,1736353845247,-566.81,0.00011094,2]
[348145824,1736353845256,-1752.88,0.00011094,2]
[348145826,1736353845265,-4068.97,0.00011094,2]
[348145828,1736353845274,-1256.35,0.00011094,2]
[348145830,1736353845284,-723.11,0.00011094,2]
[348145832,1736353845293,-500.0,0.00011094,2]
[348145834,1736353845303,-960.32,0.00011095,2]
[348145836,1736353845312,-970.25,0.00011095,2]
[348145838,1736353845323,-843.01,0.00011095,2]
[348145840,1736353845332,-500.0,0.00011095,2]
[348145842,1736353845341,-1584.65,0.00011095,2]
[348145844,1736353845351,-500.0,0.00011095,2]
[348145846,1736353845361,-1110.46,0.00011095,2]
[348145848,1736353845370,-454.59097114,0.00011095,2]
[348145850,1736353845380,-861.16,0.00011095,2]
[348145852,1736353845389,-313.41571492,0.00011141,2]
[348145854,1736353845399,-150.0,0.00011142,2]
[348145856,1736353845409,-295.41,0.00011184,2]
[348145858,1736353845419,-150.0,0.00011191,2]
[348145860,1736353845430,-150.0,0.0001122,2]
[348145862,1736353845440,-313.41571492,0.00011245,2]
[348145864,1736353845449,-500.0,0.00011249,2]
[348145866,1736353845459,-500.0,0.00011249,2]
[348145868,1736353845468,-641.84,0.00011249,2]
[348145870,1736353845477,-500.0,0.00011249,2]
[348145872,1736353845486,-500.0,0.00011249,2]
[348145874,1736353845495,-500.0,0.00011249,2]
[348145876,1736353845505,-500.0,0.00011249,2]
[348145878,1736353845514,-500.0,0.00011249,2]
[348145880,1736353845523,-500.0,0.00011249,2]
[348145882,1736353845533,-539.21,0.00011249,2]
[348145884,1736353845541,-500.0,0.00011249,2]
[348145886,1736353845550,-500.0,0.00011249,2]
[348145888,1736353845559,-500.0,0.00011249,2]
[348145890,1736353845569,-500.0,0.00011249,2]
[348145892,1736353845578,-500.0,0.00011249,2]
[348145894,1736353845587,-500.0,0.00011249,2]
[348145896,1736353845597,-500.0,0.00011249,2]
[348145898,1736353845606,-500.0,0.00011249,2]
[348145900,1736353845615,-500.0,0.00011249,2]
[348145902,1736353845624,-500.0,0.00011249,2]
[348145903,1736353845634,-500.0,0.00011249,2]
[348145906,1736353845643,-500.0,0.00011249,2]
[348145907,1736353845653,-500.0,0.00011249,2]
[348145910,1736353845662,-500.0,0.00011249,2]
[348145912,1736353845672,-1629.65,0.00011249,2]
[348145913,1736353845681,-500.0,0.00011249,2]
[348145915,1736353845690,-500.0,0.00011249,2]
[348145917,1736353845700,-500.0,0.00011249,2]
[348145919,1736353845710,-1874.02,0.00011249,2]
[348145921,1736353845720,-500.0,0.00011249,2]
[348145923,1736353845729,-500.0,0.00011249,2]
[348145926,1736353845738,-500.0,0.00011249,2]
[348145927,1736353845747,-500.0,0.00011249,2]
[348145929,1736353845756,-481.0,0.00011249,2]
[348145931,1736353845766,-500.0,0.00011249,2]
[348145932,1736353845775,-500.0,0.00011249,2]
[348145933,1736353845784,-500.0,0.00011249,2]
[348145934,1736353845793,-500.0,0.00011249,2]
[348145935,1736353845804,-500.0,0.00011249,2]
[348145936,1736353845813,-399.4,0.00011249,2]
[348145937,1736353845823,-500.0,0.00011249,2]
[348145938,1736353845832,-477.71560071,0.00011249,2]
[348145939,1736353845842,-527.21,0.00011249,2]
[348145940,1736353845851,-500.0,0.00011249,2]
[348145941,1736353845861,-520.45,0.00011249,2]
[348145942,1736353845871,-528.55,0.00011249,2]
[348145943,1736353845881,-500.0,0.00011249,2]
[348145944,1736353845890,-500.0,0.0001125,2]
[348145945,1736353845900,-500.0,0.0001125,2]
[348145946,1736353845910,-500.0,0.0001125,2]
[348145947,1736353845920,-569.09,0.0001125,2]
[348145948,1736353845929,-500.0,0.0001125,2]
[348145949,1736353845939,-735.36,0.0001125,2]
[348145950,1736353845948,-969.62,0.0001125,2]
[348145951,1736353845957,-617.3,0.0001125,2]
[348145952,1736353845968,-500.0,0.0001125,2]
[348145953,1736353845978,-500.0,0.0001125,2]
[348145954,1736353845988,-590.886398,0.0001125,2]
[348145955,1736353845997,-551.713287,0.0001125,2]
[348145956,1736353846007,-2413.33,0.0001125,2]
[348145957,1736353846016,-500.0,0.0001125,2]
[348145958,1736353846026,-500.0,0.0001125,2]
[348145959,1736353846035,-1542.67,0.0001125,2]
[348145960,1736353846045,-785.81,0.0001125,2]
[348145961,1736353846055,-500.0,0.0001125,2]
[348145962,1736353846065,-500.0,0.0001125,2]
[348145963,1736353846074,-816.79,0.0001125,2]
[348145964,1736353846084,-500.0,0.0001125,2]
[348145965,1736353846093,-279.5,0.0001125,2]
[348145966,1736353846103,-871.06,0.0001125,2]
[348145967,1736353846112,-1461.78,0.0001125,2]
[348145968,1736353846123,-1195.87,0.0001125,2]
[348145969,1736353846134,-595.94,0.0001125,2]
[348145970,1736353846143,-1117.72,0.0001125,2]
[348145971,1736353846155,-2411.13,0.0001125,2]
[348145972,1736353846165,-2436.28,0.0001125,2]
[348145973,1736353846174,-500.0,0.00011252,2]
[348145974,1736353846184,-2104.65,0.00011252,2]
[348145975,1736353846193,-500.0,0.00011252,2]
[348145976,1736353846202,-711.23,0.00011252,2]
[348145977,1736353846211,-503.04,0.00011252,2]
[348145978,1736353846221,-500.0,0.00011252,2]
[348145979,1736353846230,-537.09,0.00011252,2]
[348145980,1736353846241,-150.0,0.00011265,2]
[348145981,1736353846250,-150.0,0.00011296,2]
[348145982,1736353846259,-150.0,0.00011299,2]
[348145983,1736353846269,-150.0,0.00011309,2]
[348145984,1736353846278,-313.41571492,0.00011348,2]
[348145985,1736353846288,-150.0,0.00011354,2]
[348145986,1736353846297,-500.0,0.00011361,2]
[348145987,1736353846306,-1035.24,0.00011361,2]
[348145988,1736353846316,-2321.84,0.00011361,2]
[348145989,1736353846325,-500.0,0.00011361,2]
[348145990,1736353846334,-520.75,0.00011361,2]
[348145991,1736353846343,-1242.59,0.00011361,2]
[348145992,1736353846353,-2241.97,0.00011361,2]
[348145993,1736353846363,-500.0,0.00011361,2]
[348145994,1736353846373,-500.0,0.00011361,2]
[348145995,1736353846386,-1097.9,0.00011361,2]
[348145996,1736353846398,-744.77,0.00011361,2]
[348145997,1736353846408,-752.59,0.00011361,2]
[348145998,1736353846418,-2200.25,0.00011361,2]
[348145999,1736353846428,-500.0,0.00011362,2]
[348146000,1736353846437,-500.0,0.00011362,2]
[348146001,1736353846447,-500.0,0.00011362,2]
[348146002,1736353846456,-500.0,0.00011362,2]
[348146003,1736353846466,-500.0,0.00011362,2]
[348146004,1736353846475,-533.15,0.00011362,2]
[348146005,1736353846485,-500.0,0.00011362,2]
[348146006,1736353846494,-500.0,0.00011362,2]
[348146007,1736353846504,-769.16,0.00011363,2]
[348146008,1736353846513,-1010.14,0.00011363,2]
[348146009,1736353846522,-775.34,0.00011368,2]
[348146010,1736353846532,-642.26,0.00011368,2]
[348146011,1736353846541,-500.0,0.00011368,2]
[348146012,1736353846551,-556.97,0.00011368,2]
[348146013,1736353846561,-500.0,0.00011368,2]
[348146015,1736353846571,-988.69,0.00011368,2]
[348146017,1736353846580,-534.79,0.00011368,2]
[348146019,1736353846591,-1263.99,0.00011368,2]
[348146021,1736353846600,-1935.73,0.00011368,2]
[348146023,1736353846609,-577.75,0.00011368,2]
[348146025,1736353846619,-500.0,0.00011368,2]
[348146026,1736353846630,-500.0,0.00011368,2]
[348146028,1736353846640,-658.07,0.00011368,2]
[348146030,1736353846649,-500.0,0.00011368,2]
[348146033,1736353846658,-500.0,0.00011368,2]
[348146034,1736353846668,-500.0,0.00011368,2]
[348146036,1736353846677,-579.45,0.00011368,2]
[348146038,1736353846686,-500.0,0.00011368,2]
[348146039,1736353846696,-500.0,0.00011368,2]
[348146041,1736353846705,-563.92,0.00011368,2]
[348146043,1736353846715,-500.0,0.00011368,2]
[348146044,1736353846724,-974.8,0.00011368,2]
[348146046,1736353846734,-785.62,0.00011368,2]
[348146048,1736353846743,-901.4,0.00011368,2]
[348146050,1736353846753,-566.81,0.00011368,2]
[348146053,1736353846764,-1752.88,0.00011368,2]
[348146056,1736353846773,-4068.97,0.00011368,2]
[348146058,1736353846783,-1256.35,0.00011368,2]
[348146061,1736353846792,-723.11,0.00011368,2]
[348146064,1736353846802,-500.0,0.00011368,2]
[348146066,1736353846811,-960.32,0.00011369,2]
[348146068,1736353846821,-970.25,0.00011369,2]
[348146070,1736353846830,-843.01,0.00011369,2]
[348146072,1736353846840,-500.0,0.00011369,2]
[348146074,1736353846849,-1584.65,0.00011369,2]
[348146075,1736353846858,-500.0,0.00011369,2]
[348146076,1736353846868,-1110.46,0.00011369,2]
[348146077,1736353846878,-861.16,0.00011369,2]
[348146078,1736353846889,-150.0,0.00011396,2]
[348146079,1736353846898,-150.0,0.00011431,2]
[348146080,1736353846906,-313.41571492,0.00011452,2]
[348146081,1736353846914,-150.0,0.00011477,2]
[348146082,1736353846923,-2751.0,0.00011507,2]
[348146083,1736353846933,-150.0,0.00011511,2]
[348146084,1736353846942,-150.0,0.00011513,2]
[348146085,1736353846951,-150.0,0.0001152,2]
[348146086,1736353846961,-500.0,0.00011523,2]
[348146087,1736353846971,-500.0,0.00011523,2]
[348146088,1736353846980,-641.84,0.00011523,2]
[348146089,1736353846990,-500.0,0.00011523,2]
[348146090,1736353846999,-500.0,0.00011523,2]
[348146091,1736353847008,-500.0,0.00011523,2]
[348146092,1736353847017,-500.0,0.00011523,2]
[348146093,1736353847027,-500.0,0.00011523,2]
[348146094,1736353847036,-500.0,0.00011523,2]
[348146095,1736353847046,-539.21,0.00011523,2]
[348146096,1736353847056,-500.0,0.00011523,2]
[348146097,1736353847066,-500.0,0.00011523,2]
[348146098,1736353847076,-500.0,0.00011523,2]
[348146099,1736353847086,-500.0,0.00011523,2]
[348146100,1736353847096,-500.0,0.00011523,2]
[348146101,1736353847107,-500.0,0.00011523,2]
[348146102,1736353847117,-500.0,0.00011523,2]
[348146103,1736353847126,-500.0,0.00011523,2]
[348146104,1736353847138,-500.0,0.00011523,2]
[348146105,1736353847147,-500.0,0.00011523,2]
[348146106,1736353847161,-500.0,0.00011523,2]
[348146107,1736353847170,-500.0,0.00011523,2]
[348146108,1736353847179,-500.0,0.00011523,2]
[348146109,1736353847188,-500.0,0.00011523,2]
[348146110,1736353847198,-1629.65,0.00011523,2]
[348146111,1736353847210,-500.0,0.00011523,2]
[348146112,1736353847219,-500.0,0.00011523,2]
[348146113,1736353847229,-500.0,0.00011523,2]
[348146114,1736353847239,-1874.02,0.00011523,2]
[348146115,1736353847249,-606.94951039,0.00011523,2]
[348146116,1736353847258,-500.0,0.00011523,2]
[348146117,1736353847268,-500.0,0.00011523,2]
[348146118,1736353847278,-500.0,0.00011523,2]
[348146119,1736353847288,-500.0,0.00011523,2]
[348146120,1736353847298,-500.0,0.00011523,2]
[348146121,1736353847307,-500.0,0.00011523,2]
[348146122,1736353847316,-500.0,0.00011523,2]
[348146123,1736353847326,-500.0,0.00011523,2]
[348146124,1736353847336,-527.21,0.00011523,2]
[348146125,1736353847346,-500.0,0.00011523,2]
[348146126,1736353847356,-520.45,0.00011523,2]
[348146127,1736353847366,-528.55,0.00011523,2]
[348146128,1736353847375,-500.0,0.00011523,2]
[348146129,1736353847386,-500.0,0.00011524,2]
[348146130,1736353847397,-500.0,0.00011524,2]
[348146131,1736353847407,-500.0,0.00011524,2]
[348146132,1736353847416,-569.09,0.00011524,2]
[348146133,1736353847425,-500.0,0.00011524,2]
[348146134,1736353847435,-735.36,0.00011524,2]
[348146135,1736353847444,-969.62,0.00011524,2]
[348146136,1736353847453,-617.3,0.00011524,2]
[348146137,1736353847462,-500.0,0.00011524,2]
[348146138,1736353847471,-500.0,0.00011524,2]
[348146139,1736353847481,-590.886398,0.00011524,2]
[348146140,1736353847491,-551.713287,0.00011524,2]
[348146141,1736353847500,-2413.33,0.00011524,2]
[348146142,1736353847509,-500.0,0.00011524,2]
[348146143,1736353847519,-500.0,0.00011524,2]
[348146144,1736353847528,-1542.67,0.00011524,2]
[348146145,1736353847537,-785.81,0.00011524,2]
[348146146,1736353847546,-500.0,0.00011524,2]
[348146147,1736353847555,-500.0,0.00011524,2]
[348146148,1736353847565,-816.79,0.00011524,2]
[348146149,1736353847575,-871.06,0.00011524,2]
[348146150,1736353847584,-1461.78,0.00011524,2]
[348146151,1736353847593,-1195.87,0.00011524,2]
[348146152,1736353847603,-595.94,0.00011524,2]
[348146153,1736353847612,-1117.72,0.00011524,2]
[348146154,1736353847621,-2411.13,0.00011524,2]
[348146155,1736353847632,-2436.28,0.00011524,2]
[348146156,1736353847642,-500.0,0.00011526,2]
[348146157,1736353847651,-2104.65,0.00011526,2]
[348146158,1736353847660,-500.0,0.00011526,2]
[348146159,1736353847670,-711.23,0.00011526,2]
[348146160,1736353847679,-503.04,0.00011526,2]
[348146161,1736353847688,-500.0,0.00011526,2]
[348146162,1736353847698,-537.09,0.00011526,2]
[348146163,1736353847707,-150.0,0.00011537,2]
[348146164,1736353847717,-358.49483396,0.00011539,2]
[348146165,1736353847726,-150.0,0.00011554,2]
[348146166,1736353847736,-313.41571492,0.00011555,2]
[348146167,1736353847745,-150.0,0.00011573,2]
[348146168,1736353847755,-150.0,0.00011573,2]
[348146169,1736353847765,-150.0,0.00011608,2]
[348146170,1736353847775,-500.0,0.00011635,2]
[348146171,1736353847784,-1035.24,0.00011635,2]
[348146172,1736353847794,-2321.84,0.00011635,2]
[348146173,1736353847803,-500.0,0.00011635,2]
[348146174,1736353847812,-150.0,0.00011635,2]
[348146175,1736353847821,-520.75,0.00011635,2]
[348146176,1736353847831,-1242.59,0.00011635,2]
[348146177,1736353847840,-2241.97,0.00011635,2]
[348146178,1736353847850,-500.0,0.00011635,2]
[348146179,1736353847859,-500.0,0.00011635,2]
[348146180,1736353847869,-1097.9,0.00011635,2]
[348146181,1736353847880,-744.77,0.00011635,2]
[348146182,1736353847890,-752.59,0.00011635,2]
[348146183,1736353847899,-2200.25,0.00011635,2]
[348146184,1736353847909,-500.0,0.00011636,2]
[348146185,1736353847919,-500.0,0.00011636,2]
[348146186,1736353847928,-500.0,0.00011636,2]
[348146187,1736353847938,-500.0,0.00011636,2]
[348146188,1736353847948,-500.0,0.00011636,2]
[348146189,1736353847958,-533.15,0.00011636,2]
[348146190,1736353847967,-500.0,0.00011636,2]
[348146191,1736353847977,-500.0,0.00011636,2]
[348146192,1736353847986,-769.16,0.00011637,2]
[348146193,1736353848011,-1010.14,0.00011637,2]
[348146194,1736353848020,-500.0,0.00011642,2]
[348146195,1736353848030,-775.34,0.00011642,2]
[348146196,1736353848039,-642.26,0.00011642,2]
[348146197,1736353848049,-558.45,0.00011642,2]
[348146198,1736353848058,-556.97,0.00011642,2]
[348146199,1736353848068,-500.0,0.00011642,2]
[348146200,1736353848079,-988.69,0.00011642,2]
[348146201,1736353848089,-534.79,0.00011642,2]
[348146202,1736353848100,-1263.99,0.00011642,2]
[348146203,1736353848110,-1935.73,0.00011642,2]
[348146204,1736353848120,-577.75,0.00011642,2]